fUST/lending_fUST_20250203
["ID","MTS","AMOUNT","RATE_DAILY","PERIOD"]
[351404461,1738554654119,-466.46865929,0.00017123,2]
[351404462,1738554654129,-500.0,0.00017123,2]
[351404463,1738554654138,-500.0,0.00017123,2]
[351404464,1738554654147,-500.0,0.00017123,2]
[351404465,1738554654157,-500.0,0.00017123,2]
[351404466,1738554654167,-500.0,0.00017123,2]
[351404468,1738554654176,-773.23,0.00017123,2]
[351404469,1738554654185,-337.50211777,0.00017123,2]
[351404470,1738554654195,-765.33,0.00017123,2]
[351404471,1738554654205,-668.66,0.00017123,2]
[351404472,1738554654336,-500.0,0.00017123,2]
[351404473,1738554654347,-500.0,0.00017123,2]
[351404474,1738554654357,-480.58992077,0.00017123,2]
[351404475,1738554654367,-500.0,0.00017123,2]
[351404476,1738554654377,-500.0,0.00017123,2]
[351404477,1738554654387,-500.0,0.00017123,2]
[351404478,1738554654396,-500.0,0.00017123,2]
[351404480,1738554654406,-500.0,0.00017123,2]
[351404481,1738554654415,-500.0,0.00017123,2]
[351404482,1738554654425,-508.56256764,0.00017123,2]
[351404483,1738554654434,-500.0,0.00017123,2]
[351404484,1738554654443,-500.0,0.00017123,2]
[351404485,1738554654453,-500.0,0.00017123,2]
[351404486,1738554654462,-500.0,0.00017123,2]
[351404487,1738554654471,-500.0,0.00017123,2]
[351404488,1738554654480,-3183.83,0.00017123,2]
[351404489,1738554654491,-500.0,0.00017123,2]
[351404490,1738554654506,-596.49,0.00017123,2]
[351404491,1738554654515,-7065.8,0.00017123,2]
[351404492,1738554654525,-684.68,0.00017123,2]
[351404493,1738554654534,-500.0,0.00017123,2]
[351404494,1738554654543,-500.0,0.00017123,2]
[351404495,1738554654552,-500.0,0.00017123,2]
[351404496,1738554654562,-750.78,0.00017123,2]
[351404497,1738554654571,-500.0,0.00017123,2]
[351404498,1738554654584,-483.34,0.00017123,2]
[351404499,1738554654594,-650.17,0.00017123,2]
[351404500,1738554654603,-517.28037903,0.00017123,2]
[351404501,1738554654613,-1019.39,0.00017123,2]
[351404502,1738554654623,-500.0,0.00017123,2]
[351404503,1738554654632,-500.0,0.00017123,2]
[351404504,1738554654641,-8146.71,0.00017123,2]
[351404505,1738554654651,-613.84,0.00017123,2]
[351404506,1738554654661,-550.81,0.00017123,2]
[351404507,1738554654671,-500.0,0.00017123,2]
[351404508,1738554654681,-500.0,0.00017123,2]
[351404509,1738554654690,-909.51,0.00017123,2]
[351404510,1738554654699,-804.6,0.00017123,2]
[351404511,1738554654709,-500.0,0.00017123,2]
[351404512,1738554654719,-2011.93,0.00017123,2]
[351404513,1738554654728,-500.0,0.00017123,2]
[351404514,1738554654737,-3668.25,0.00017123,2]
[351404515,1738554654750,-741.77,0.00017123,2]
[351404516,1738554654759,-1378.39,0.00017123,2]
[351404517,1738554654770,-500.0,0.00017123,2]
[351404518,1738554654779,-500.0,0.00017123,2]
[351404519,1738554654788,-385.21669434,0.00017123,2]
[351404520,1738554654799,-523.07543322,0.00017123,2]
[351404521,1738554654809,-500.0,0.00017123,2]
[351404522,1738554654820,-1589.79,0.00017123,2]
[351404523,1738554654830,-774.95,0.00017123,2]
[351404524,1738554654841,-500.0,0.00017123,2]
[351404525,1738554654851,-500.0,0.00017123,2]
[351404526,1738554654862,-500.0,0.00017123,2]
[351404527,1738554654872,-635.87,0.00017123,2]
[351404528,1738554654882,-1797.16,0.00017123,2]
[351404529,1738554654892,-724.24,0.00017123,2]
[351404530,1738554654902,-668.66,0.00017123,2]
[351404531,1738554654911,-500.0,0.00017123,2]
[351404532,1738554654921,-1734.91,0.00017123,2]
[351404533,1738554654930,-500.0,0.00017123,2]
[351404534,1738554654940,-500.0,0.00017123,2]
[351404535,1738554654949,-500.0,0.00017123,2]
[351404536,1738554654958,-1085.82,0.00017123,2]
[351404537,1738554654967,-500.0,0.00017123,2]
[351404538,1738554654977,-623.92,0.00017123,2]
[351404539,1738554654986,-502.86696219,0.00017123,2]
[351404540,1738554654999,-500.0,0.00017123,2]
[351404541,1738554655010,-712.64,0.00017123,2]
[351404542,1738554655019,-500.0,0.00017123,2]
[351404543,1738554655028,-1384.58,0.00017123,2]
[351404544,1738554655037,-564.8,0.00017123,2]
[351404545,1738554655046,-500.0,0.00017123,2]
[351404546,1738554655055,-523.69,0.00017123,2]
[351404547,1738554655065,-210.59388211,0.00017173,2]
[351404548,1738554655074,-153.0,0.00017178,2]
[351404549,1738554655088,-153.0,0.00017178,2]
[351404550,1738554655098,-153.0,0.00017178,2]
[351404551,1738554655107,-153.0,0.00017178,2]
[351404552,1738554655117,-151.0,0.0001726,2]
[351404553,1738554655127,-151.0,0.0001726,2]
[351404554,1738554655136,-175.793076,0.0001726,2]
[351404555,1738554655146,-175.793076,0.0001726,2]
[351404556,1738554655155,-151.0,0.0001726,2]
[351404557,1738554655164,-158.078176,0.0001726,2]
[351404558,1738554655173,-204.116579,0.0001726,2]
[351404559,1738554655183,-204.116579,0.0001726,2]
[351404560,1738554655191,-225.184195,0.0001726,2]
[351404561,1738554655200,-225.184195,0.0001726,2]
[351404562,1738554655210,-509.534165,0.0001726,2]
[351404563,1738554655219,-509.534165,0.0001726,2]
[351404564,1738554655228,-151.0,0.0001726,2]
[351404565,1738554655237,-151.0,0.0001726,2]
[351404566,1738554655249,-500.0,0.0001726,2]
[351404567,1738554655259,-500.0,0.0001726,2]
[351404568,1738554655268,-574.02251724,0.0001726,2]
[351404569,1738554655278,-500.0,0.0001726,2]
[351404570,1738554655287,-500.0,0.0001726,2]
[351404571,1738554655297,-500.0,0.0001726,2]
[351404572,1738554655307,-500.0,0.0001726,2]
[351404573,1738554655317,-500.0,0.0001726,2]
[351404574,1738554655327,-151.0,0.0001726,2]
[351404575,1738554655336,-151.0,0.0001726,2]
[351404576,1738554655346,-500.0,0.0001726,2]
[351404577,1738554655355,-569.324052,0.0001726,2]
[351404578,1738554655365,-569.324052,0.0001726,2]
[351404579,1738554655374,-464.083288,0.0001726,2]
[351404580,1738554655384,-464.083288,0.0001726,2]
[351404581,1738554655393,-396.02622332,0.0001726,2]
[351404582,1738554655402,-500.0,0.0001726,2]
[351404583,1738554655412,-151.0,0.0001726,2]
[351404584,1738554655421,-151.0,0.0001726,2]
[351404585,1738554655431,-151.0,0.0001726,2]
[351404586,1738554655442,-357.730509,0.0001726,2]
[351404587,1738554655451,-500.0,0.0001726,2]
[351404588,1738554655461,-357.730509,0.0001726,2]
[351404589,1738554655471,-532.90786599,0.0001726,2]
[351404590,1738554655481,-646.19324,0.0001726,2]
[351404591,1738554655490,-500.0,0.0001726,2]
[351404592,1738554655502,-646.19324,0.0001726,2]
[351404593,1738554655512,-500.0,0.0001726,2]
[351404594,1738554655522,-196.56052461,0.0001726,2]
[351404595,1738554655531,-151.0,0.0001726,2]
[351404596,1738554655540,-151.0,0.0001726,2]
[351404597,1738554655550,-500.0,0.0001726,2]
[351404598,1738554655559,-500.0,0.0001726,2]
[351404599,1738554655569,-991.829039,0.0001726,2]
[351404600,1738554655579,-500.0,0.0001726,2]
[351404601,1738554655588,-991.829039,0.0001726,2]
[351404602,1738554655598,-500.0,0.0001726,2]
[351404603,1738554655610,-500.0,0.0001726,2]
[351404604,1738554655620,-255.15915599,0.0001726,2]
[351404605,1738554655629,-406.76374039,0.0001726,2]
[351404606,1738554655639,-350.32106997,0.0001726,2]
[351404607,1738554655649,-500.0,0.0001726,2]
[351404608,1738554655658,-500.0,0.0001726,2]
[351404609,1738554655668,-252.391,0.0001726,2]
[351404610,1738554655677,-510.27454572,0.0001726,2]
[351404611,1738554655687,-500.0,0.0001726,2]
[351404612,1738554655697,-252.391,0.0001726,2]
[351404613,1738554655707,-500.0,0.0001726,2]
[351404614,1738554655716,-500.0,0.0001726,2]
[351404615,1738554655726,-504.9539952,0.0001726,2]
[351404616,1738554655735,-500.0,0.0001726,2]
[351404617,1738554655746,-500.0,0.0001726,2]
[351404618,1738554655755,-500.0,0.0001726,2]
[351404619,1738554655765,-500.0,0.0001726,2]
[351404620,1738554655774,-500.0,0.0001726,2]
[351404621,1738554655784,-500.0,0.0001726,2]
[351404622,1738554655793,-500.0,0.0001726,2]
[351404623,1738554655803,-173.779155,0.0001726,2]
[351404624,1738554655812,-500.0,0.0001726,2]
[351404625,1738554655822,-500.0,0.0001726,2]
[351404626,1738554655831,-173.779155,0.0001726,2]
[351404627,1738554655841,-500.0,0.0001726,2]
[351404628,1738554655851,-500.0,0.0001726,2]
[351404629,1738554655860,-500.0,0.0001726,2]
[351404630,1738554655870,-500.0,0.0001726,2]
[351404631,1738554655880,-500.0,0.0001726,2]
[351404632,1738554655890,-151.0,0.0001726,2]
[351404633,1738554655899,-151.0,0.0001726,2]
[351404634,1738554655909,-151.0,0.0001726,2]
[351404635,1738554655918,-773.23,0.0001726,2]
[351404636,1738554655928,-151.0,0.0001726,2]
[351404637,1738554655937,-765.33,0.0001726,2]
[351404638,1738554655947,-275.713506,0.0001726,2]
[351404639,1738554655957,-275.713506,0.0001726,2]
[351404640,1738554655966,-668.66,0.0001726,2]
[351404641,1738554655975,-500.0,0.0001726,2]
[351404642,1738554655985,-500.0,0.0001726,2]
[351404643,1738554655995,-500.0,0.0001726,2]
[351404644,1738554656005,-500.0,0.0001726,2]
[351404646,1738554656015,-500.0,0.0001726,2]
[351404647,1738554656024,-671.28806,0.0001726,2]
[351404648,1738554656034,-500.0,0.0001726,2]
[351404649,1738554656044,-671.28806,0.0001726,2]
[351404650,1738554656054,-500.0,0.0001726,2]
[351404651,1738554656063,-500.0,0.0001726,2]
[351404652,1738554656074,-500.0,0.0001726,2]
[351404653,1738554656083,-500.0,0.0001726,2]
[351404654,1738554656093,-536.48609698,0.0001726,2]
[351404655,1738554656103,-3183.83,0.0001726,2]
[351404656,1738554656113,-877.881464,0.0001726,2]
[351404657,1738554656124,-877.881464,0.0001726,2]
[351404658,1738554656134,-500.0,0.0001726,2]
[351404659,1738554656144,-596.49,0.0001726,2]
[351404661,1738554656153,-7065.8,0.0001726,2]
[351404662,1738554656163,-684.68,0.0001726,2]
[351404663,1738554656173,-500.0,0.0001726,2]
[351404664,1738554656183,-758.586966,0.0001726,2]
[351404665,1738554656192,-500.0,0.0001726,2]
[351404666,1738554656202,-151.0,0.0001726,2]
[351404667,1738554656211,-758.586966,0.0001726,2]
[351404668,1738554656221,-529.44435928,0.0001726,2]
[351404669,1738554656231,-151.0,0.0001726,2]
[351404670,1738554656240,-750.78,0.0001726,2]
[351404671,1738554656253,-500.0,0.0001726,2]
[351404672,1738554656263,-650.17,0.0001726,2]
[351404673,1738554656272,-151.0,0.0001726,2]
[351404674,1738554656282,-1019.39,0.0001726,2]
[351404675,1738554656292,-500.0,0.0001726,2]
[351404676,1738554656301,-188.61279889,0.0001726,2]
[351404677,1738554656312,-151.0,0.0001726,2]
[351404679,1738554656322,-8146.71,0.0001726,2]
[351404680,1738554656331,-151.0,0.0001726,2]
[351404681,1738554656341,-613.84,0.0001726,2]
[351404682,1738554656351,-550.81,0.0001726,2]
[351404683,1738554656360,-579.7222175,0.0001726,2]
[351404684,1738554656370,-500.0,0.0001726,2]
[351404685,1738554656379,-909.51,0.0001726,2]
[351404686,1738554656389,-804.6,0.0001726,2]
[351404687,1738554656398,-500.0,0.0001726,2]
[351404688,1738554656408,-151.0,0.0001726,2]
[351404689,1738554656417,-151.0,0.0001726,2]
[351404690,1738554656427,-2011.93,0.0001726,2]
[351404691,1738554656436,-500.0,0.0001726,2]
[351404692,1738554656445,-3668.25,0.0001726,2]
[351404693,1738554656455,-741.77,0.0001726,2]
[351404694,1738554656464,-1378.39,0.0001726,2]
[351404695,1738554656474,-516.0112694,0.0001726,2]
[351404696,1738554656483,-500.0,0.0001726,2]
[351404698,1738554656493,-1589.79,0.0001726,2]
[351404699,1738554656504,-774.95,0.0001726,2]
[351404700,1738554656514,-500.0,0.0001726,2]
[351404701,1738554656524,-500.0,0.0001726,2]
[351404702,1738554656534,-500.0,0.0001726,2]
[351404703,1738554656544,-635.87,0.0001726,2]
[351404704,1738554656553,-1797.16,0.0001726,2]
[351404705,1738554656563,-724.24,0.0001726,2]
[351404707,1738554656572,-668.66,0.0001726,2]
[351404708,1738554656583,-500.0,0.0001726,2]
[351404709,1738554656594,-1734.91,0.0001726,2]
[351404710,1738554656603,-500.0,0.0001726,2]
[351404711,1738554656613,-500.0,0.0001726,2]
[351404712,1738554656622,-1085.82,0.0001726,2]
[351404713,1738554656634,-500.0,0.0001726,2]
[351404714,1738554656643,-623.92,0.0001726,2]
[351404715,1738554656653,-513.07983784,0.0001726,2]
[351404716,1738554656663,-712.64,0.0001726,2]
[351404717,1738554656672,-500.0,0.0001726,2]
[351404718,1738554656682,-1384.58,0.0001726,2]
[351404719,1738554656692,-564.8,0.0001726,2]
[351404720,1738554656701,-500.0,0.0001726,2]
[351404721,1738554656710,-523.69,0.0001726,2]
[351404722,1738554656720,-210.59388211,0.00017264,2]
[351404723,1738554656729,-502.62444838,0.00017321,2]
[351404724,1738554656739,-150.0,0.00017337,2]
[351404725,1738554656753,-1947.0,0.00017337,2]
[351404726,1738554656762,-1894.076,0.00017337,2]
[351404727,1738554656772,-150.0,0.00017337,2]
[351404728,1738554656781,-396.0,0.00017337,2]
[351404729,1738554656791,-210.59388211,0.00017355,2]
[351404730,1738554656800,-877.881464,0.00017396,2]
[351404731,1738554656809,-877.881464,0.00017396,2]
[351404732,1738554656818,-151.0,0.00017396,2]
[351404733,1738554656827,-151.0,0.00017397,2]
[351404734,1738554656836,-183.8085,0.00017397,2]
[351404735,1738554656846,-151.0,0.00017397,2]
[351404736,1738554656855,-151.0,0.00017397,2]
[351404737,1738554656864,-181.315323,0.00017397,2]
[351404738,1738554656874,-181.315323,0.00017397,2]
[351404739,1738554656883,-485.66,0.00017397,2]
[351404740,1738554656892,-500.0,0.00017397,2]
[351404741,1738554656901,-500.0,0.00017397,2]
[351404742,1738554656911,-500.0,0.00017397,2]
[351404743,1738554656920,-291.08220175,0.00017397,2]
[351404744,1738554656930,-151.0,0.00017397,2]
[351404745,1738554656940,-500.0,0.00017397,2]
[351404746,1738554656950,-151.0,0.00017397,2]
[351404747,1738554656959,-575.70669736,0.00017397,2]
[351404748,1738554656968,-500.0,0.00017397,2]
[351404749,1738554656978,-151.0,0.00017397,2]
[351404750,1738554656987,-500.0,0.00017397,2]
[351404751,1738554657002,-500.0,0.00017397,2]
[351404752,1738554657012,-389.83652612,0.00017397,2]
[351404753,1738554657022,-197.50529093,0.00017397,2]
[351404754,1738554657033,-500.0,0.00017397,2]
[351404755,1738554657043,-500.0,0.00017397,2]
[351404756,1738554657054,-500.0,0.00017397,2]
[351404757,1738554657064,-207.54415717,0.00017397,2]
[351404758,1738554657074,-500.0,0.00017397,2]
[351404759,1738554657085,-500.0,0.00017397,2]
[351404760,1738554657095,-500.0,0.00017397,2]
[351404761,1738554657105,-530.65107731,0.00017397,2]
[351404762,1738554657115,-500.0,0.00017397,2]
[351404763,1738554657125,-500.0,0.00017397,2]
[351404764,1738554657134,-500.0,0.00017397,2]
[351404765,1738554657143,-500.0,0.00017397,2]
[351404766,1738554657152,-500.0,0.00017397,2]
[351404767,1738554657162,-505.68642077,0.00017397,2]
[351404768,1738554657172,-500.0,0.00017397,2]
[351404769,1738554657182,-500.0,0.00017397,2]
[351404770,1738554657191,-500.0,0.00017397,2]
[351404771,1738554657200,-500.0,0.00017397,2]
[351404772,1738554657210,-508.62205404,0.00017397,2]
[351404773,1738554657220,-500.0,0.00017397,2]
[351404774,1738554657229,-500.0,0.00017397,2]
[351404775,1738554657239,-500.0,0.00017397,2]
[351404776,1738554657254,-773.23,0.00017397,2]
[351404777,1738554657263,-765.33,0.00017397,2]
[351404778,1738554657273,-668.66,0.00017397,2]
[351404779,1738554657282,-500.0,0.00017397,2]
[351404780,1738554657409,-500.0,0.00017397,2]
[351404781,1738554657419,-500.0,0.00017397,2]
[351404782,1738554657429,-500.0,0.00017397,2]
[351404783,1738554657438,-500.0,0.00017397,2]
[351404784,1738554657448,-500.0,0.00017397,2]
[351404785,1738554657457,-626.54902045,0.00017397,2]
[351404786,1738554657466,-500.0,0.00017397,2]
[351404787,1738554657475,-500.0,0.00017397,2]
[351404788,1738554657484,-3183.83,0.00017397,2]
[351404789,1738554657493,-500.0,0.00017397,2]
[351404790,1738554657504,-596.49,0.00017397,2]
[351404791,1738554657514,-7065.8,0.00017397,2]
[351404792,1738554657524,-684.68,0.00017397,2]
[351404793,1738554657534,-500.0,0.00017397,2]
[351404794,1738554657543,-758.586966,0.00017397,2]
[351404795,1738554657553,-625.31099853,0.00017397,2]
[351404796,1738554657562,-151.0,0.00017397,2]
[351404797,1738554657572,-758.586966,0.00017397,2]
[351404798,1738554657582,-750.78,0.00017397,2]
[351404799,1738554657591,-500.0,0.00017397,2]
[351404800,1738554657601,-650.17,0.00017397,2]
[351404801,1738554657612,-1019.39,0.00017397,2]
[351404802,1738554657622,-594.29119759,0.00017397,2]
[351404803,1738554657631,-8146.71,0.00017397,2]
[351404804,1738554657640,-613.84,0.00017397,2]
[351404805,1738554657649,-550.81,0.00017397,2]
[351404806,1738554657659,-500.0,0.00017397,2]
[351404807,1738554657668,-909.51,0.00017397,2]
[351404808,1738554657679,-804.6,0.00017397,2]
[351404809,1738554657688,-500.0,0.00017397,2]
[351404810,1738554657698,-2011.93,0.00017397,2]
[351404811,1738554657707,-500.0,0.00017397,2]
[351404812,1738554657716,-3668.25,0.00017397,2]
[351404813,1738554657726,-741.77,0.00017397,2]
[351404814,1738554657735,-1378.39,0.00017397,2]
[351404815,1738554657747,-519.97741429,0.00017397,2]
[351404817,1738554657757,-1589.79,0.00017397,2]
[351404818,1738554657767,-774.95,0.00017397,2]
[351404819,1738554657776,-287.58465036,0.00017397,2]
[351404820,1738554657785,-511.46489255,0.00017397,2]
[351404821,1738554657794,-500.0,0.00017397,2]
[351404822,1738554657803,-635.87,0.00017397,2]
[351404823,1738554657812,-175.341589,0.00017397,2]
[351404824,1738554657822,-1797.16,0.00017397,2]
[351404825,1738554657831,-175.341589,0.00017397,2]
[351404826,1738554657840,-724.24,0.00017397,2]
[351404827,1738554657850,-668.66,0.00017397,2]
[351404828,1738554657859,-500.0,0.00017397,2]
[351404829,1738554657868,-1734.91,0.00017397,2]
[351404830,1738554657878,-237.46702092,0.00017397,2]
[351404831,1738554657887,-500.0,0.00017397,2]
[351404832,1738554657897,-1085.82,0.00017397,2]
[351404833,1738554657907,-500.0,0.00017397,2]
[351404834,1738554657916,-623.92,0.00017397,2]
[351404835,1738554657925,-712.64,0.00017397,2]
[351404836,1738554657935,-500.0,0.00017397,2]
[351404837,1738554657944,-1384.58,0.00017397,2]
[351404838,1738554657953,-564.8,0.00017397,2]
[351404839,1738554657962,-500.0,0.00017397,2]
[351404840,1738554657972,-523.69,0.00017397,2]
[351404841,1738554657981,-876.9558,0.00017399,2]
[351404842,1738554657992,-151.0,0.00017418,2]
[351404843,1738554658003,-210.59388211,0.00017445,2]
[351404844,1738554658013,-150.739,0.00017446,2]
[351404845,1738554658023,-298.57,0.00017446,2]
[351404846,1738554658032,-150.0,0.00017446,2]
[351404848,1738554658042,-150.428,0.00017446,2]
[351404849,1738554658052,-252.993,0.00017446,2]
[351404850,1738554658061,-153.0,0.00017452,2]
[351404851,1738554658070,-153.293601,0.0001746,5]
[351404852,1738554658080,-3389.81838024,0.000175,2]
[351404853,1738554658089,-151.0,0.0001752,2]
[351404854,1738554658099,-151.0,0.0001752,2]
[351404855,1738554658108,-1000.0,0.00017521,2]
[351404856,1738554658117,-1000.0,0.00017521,2]
[351404857,1738554658126,-522.53270456,0.00017521,2]
[351404858,1738554658136,-1000.33253534,0.00017521,2]
[351404859,1738554658145,-1000.0,0.00017521,2]
[351404860,1738554658154,-1000.0,0.00017521,2]
[351404861,1738554658163,-275.713506,0.00017533,2]
[351404862,1738554658173,-275.713506,0.00017533,2]
[351404864,1738554658182,-671.28806,0.00017533,2]
[351404865,1738554658191,-671.28806,0.00017533,2]
[351404866,1738554658200,-151.0,0.00017533,2]
[351404867,1738554658209,-151.0,0.00017533,2]
[351404868,1738554658219,-151.0,0.00017533,2]
[351404869,1738554658228,-151.190059,0.00017534,2]
[351404870,1738554658237,-151.0,0.00017534,2]
[351404871,1738554658249,-151.0,0.00017534,2]
[351404872,1738554658259,-175.793076,0.00017534,2]
[351404873,1738554658268,-175.793076,0.00017534,2]
[351404874,1738554658278,-151.0,0.00017534,2]
[351404875,1738554658288,-151.0,0.00017534,2]
[351404876,1738554658297,-181.315323,0.00017534,2]
[351404877,1738554658307,-181.315323,0.00017534,2]
[351404878,1738554658316,-204.116579,0.00017534,2]
[351404879,1738554658326,-204.116579,0.00017534,2]
[351404880,1738554658335,-225.184195,0.00017534,2]
[351404881,1738554658344,-225.184195,0.00017534,2]
[351404882,1738554658354,-509.534165,0.00017534,2]
[351404883,1738554658363,-509.534165,0.00017534,2]
[351404884,1738554658373,-151.0,0.00017534,2]
[351404885,1738554658382,-268.096124,0.00017534,2]
[351404886,1738554658391,-152.952818,0.00017534,2]
[351404887,1738554658401,-151.0,0.00017534,2]
[351404888,1738554658410,-500.0,0.00017534,2]
[351404889,1738554658419,-500.0,0.00017534,2]
[351404891,1738554658428,-500.0,0.00017534,2]
[351404892,1738554658438,-500.0,0.00017534,2]
[351404893,1738554658447,-151.0,0.00017534,2]
[351404894,1738554658456,-151.0,0.00017534,2]
[351404895,1738554658466,-569.324052,0.00017534,2]
[351404896,1738554658475,-569.324052,0.00017534,2]
[351404897,1738554658485,-464.083288,0.00017534,2]
[351404898,1738554658498,-464.083288,0.00017534,2]
[351404899,1738554658508,-506.36684317,0.00017534,2]
[351404900,1738554658518,-500.0,0.00017534,2]
[351404901,1738554658528,-500.0,0.00017534,2]
[351404902,1738554658538,-500.0,0.00017534,2]
[351404903,1738554658548,-541.61751304,0.00017534,2]
[351404904,1738554658558,-500.0,0.00017534,2]
[351404905,1738554658568,-500.0,0.00017534,2]
[351404906,1738554658578,-500.0,0.00017534,2]
[351404907,1738554658588,-365.38033749,0.00017534,2]
[351404908,1738554658598,-500.0,0.00017534,2]
[351404909,1738554658610,-500.0,0.00017534,2]
[351404910,1738554658621,-312.0,0.00017534,2]
[351404911,1738554658630,-500.0,0.00017534,2]
[351404912,1738554658640,-500.0,0.00017534,2]
[351404913,1738554658650,-500.0,0.00017534,2]
[351404914,1738554658660,-535.06409866,0.00017534,2]
[351404915,1738554658670,-500.0,0.00017534,2]
[351404916,1738554658680,-500.0,0.00017534,2]
[351404917,1738554658690,-500.0,0.00017534,2]
[351404918,1738554658699,-773.23,0.00017534,2]
[351404919,1738554658709,-765.33,0.00017534,2]
[351404920,1738554658718,-668.66,0.00017534,2]
[351404921,1738554658727,-268.5965151,0.00017534,2]
[351404922,1738554658737,-500.0,0.00017534,2]
[351404923,1738554658748,-500.0,0.00017534,2]
[351404924,1738554658757,-500.0,0.00017534,2]
[351404925,1738554658767,-500.0,0.00017534,2]
[351404926,1738554658776,-500.0,0.00017534,2]
[351404927,1738554658786,-500.0,0.00017534,2]
[351404928,1738554658795,-500.0,0.00017534,2]
[351404929,1738554658804,-3183.83,0.00017534,2]
[351404930,1738554658814,-500.0,0.00017534,2]
[351404931,1738554658823,-596.49,0.00017534,2]
[351404932,1738554658832,-7065.8,0.00017534,2]
[351404933,1738554658841,-684.68,0.00017534,2]
[351404935,1738554658851,-500.0,0.00017534,2]
[351404936,1738554658860,-750.78,0.00017534,2]
[351404937,1738554658869,-500.0,0.00017534,2]
[351404938,1738554658878,-650.17,0.00017534,2]
[351404939,1738554658887,-151.0,0.00017534,2]
[351404940,1738554658896,-1019.39,0.00017534,2]
[351404941,1738554658906,-8146.71,0.00017534,2]
[351404942,1738554658915,-613.84,0.00017534,2]
[351404943,1738554658924,-550.81,0.00017534,2]
[351404944,1738554658934,-500.0,0.00017534,2]
[351404945,1738554658943,-909.51,0.00017534,2]
[351404946,1738554658953,-804.6,0.00017534,2]
[351404947,1738554658962,-500.0,0.00017534,2]
[351404948,1738554658971,-2011.93,0.00017534,2]
[351404949,1738554658981,-500.0,0.00017534,2]
[351404950,1738554658991,-3668.25,0.00017534,2]
[351404951,1738554659003,-741.77,0.00017534,2]
[351404952,1738554659012,-1378.39,0.00017534,2]
[351404953,1738554659022,-1589.79,0.00017534,2]
[351404954,1738554659031,-774.95,0.00017534,2]
[351404956,1738554659041,-500.0,0.00017534,2]
[351404957,1738554659051,-635.87,0.00017534,2]
[351404958,1738554659060,-1797.16,0.00017534,2]
[351404959,1738554659070,-724.24,0.00017534,2]
[351404960,1738554659080,-668.66,0.00017534,2]
[351404961,1738554659089,-500.0,0.00017534,2]
[351404962,1738554659099,-1734.91,0.00017534,2]
[351404963,1738554659108,-500.0,0.00017534,2]
[351404964,1738554659118,-1085.82,0.00017534,2]
[351404965,1738554659127,-623.92,0.00017534,2]
[351404966,1738554659137,-712.64,0.00017534,2]
[351404967,1738554659146,-500.0,0.00017534,2]
[351404968,1738554659155,-1384.58,0.00017534,2]
[351404969,1738554659164,-564.8,0.00017534,2]
[351404970,1738554659174,-523.69,0.00017534,2]
[351404971,1738554659183,-210.59388211,0.00017536,2]
[351404972,1738554659193,-465.12809876,0.00017558,2]
[351404973,1738554659202,-646.19324,0.00017568,2]